fUSD/lending_fUSD_20240616
["ID","MTS","AMOUNT","RATE_DAILY","PERIOD"]
[329689652,1718580646358,-202.011918,0.00023,2]
[329689653,1718580646372,-3715.615,0.00023099,2]
[329689654,1718580646383,-151.0,0.00023099,7]
[329689655,1718580646394,-255.525729,0.00023099,7]
[329689656,1718580646405,-151.0,0.00023099,7]
[329689657,1718580646420,-1486.44042151,0.00023469,2]
[329689658,1718580646436,-350.35081611,0.0002356,2]
[329689659,1718580646459,-3710.691,0.00023588,2]
[329689660,1718580646481,-151.0,0.00023588,7]
[329689661,1718580646494,-151.0,0.00023588,7]
[329689662,1718580646508,-151.0,0.00023588,7]
[329689663,1718580646520,-151.0,0.00023588,7]
[329689664,1718580646531,-611.496641,0.00023588,7]
[329689665,1718580646542,-611.496641,0.00023588,7]
[329689666,1718580646553,-558.13,0.00023599,2]
[329689667,1718580646565,-151.0,0.00023685,7]
[329689668,1718580646583,-151.0,0.00023685,7]
[329689669,1718580646602,-151.0,0.00023685,7]
[329689670,1718580646614,-151.0,0.00023685,7]
[329689671,1718580646658,-151.0,0.00023685,7]
[329689672,1718580646669,-151.0,0.00023685,7]
[329689673,1718580646687,-151.0,0.00023685,7]
[329689674,1718580646712,-282.0,0.00023685,7]
[329689675,1718580646723,-25.96705644,0.00023685,7]
[329689676,1718580646739,-125.03294356,0.00023685,7]
[329689677,1718580646750,-162.120981,0.00023685,7]
[329689678,1718580646766,-183.341786,0.00023685,7]
[329689679,1718580646800,-183.341786,0.00023685,7]
[329689680,1718580646820,-151.0,0.00023685,7]
[329689681,1718580646864,-151.0,0.00023685,7]
[329689682,1718580646885,-151.0,0.00023685,7]
[329689683,1718580646905,-151.0,0.00023685,7]
[329689684,1718580646932,-151.0,0.00023685,7]
[329689685,1718580646947,-151.0,0.00023685,7]
[329689686,1718580646974,-151.0,0.00023685,7]
[329689687,1718580647000,-234.384942,0.00023685,7]
[329689688,1718580647033,-234.384942,0.00023685,7]
[329689689,1718580647050,-151.0,0.00023685,7]
[329689690,1718580647071,-151.0,0.00023685,7]
[329689691,1718580647106,-151.0,0.00023685,7]
[329689692,1718580647152,-151.0,0.00023685,7]
[329689693,1718580647198,-151.0,0.00023685,7]
[329689694,1718580647228,-151.906558,0.00023685,7]
[329689695,1718580647240,-151.0,0.00023685,7]
[329689696,1718580647268,-151.0,0.00023685,7]
[329689697,1718580647280,-278.273142,0.00023685,7]
[329689698,1718580647295,-553.852946,0.00023685,7]
[329689699,1718580647316,-151.0,0.00023685,7]
[329689700,1718580647327,-553.852946,0.00023685,7]
[329689701,1718580647338,-222.025079,0.00023685,7]
[329689702,1718580647351,-222.025079,0.00023685,7]
[329689703,1718580647365,-270.41057,0.00023685,7]
[329689704,1718580647378,-217.863223,0.00023685,7]
[329689705,1718580647406,-151.0,0.00023685,7]
[329689706,1718580647442,-217.863223,0.00023685,7]
[329689707,1718580647455,-151.0,0.00023685,7]
[329689708,1718580647466,-151.0,0.00023685,7]
[329689709,1718580647481,-151.0,0.00023685,7]
[329689710,1718580647495,-316.296989,0.00023685,7]
[329689711,1718580647509,-151.0,0.00023685,7]
[329689712,1718580647521,-316.296989,0.00023685,7]
[329689713,1718580647545,-151.0,0.00023685,7]
[329689714,1718580647559,-151.0,0.00023685,7]
[329689715,1718580647571,-152.310322,0.00023685,7]
[329689716,1718580647588,-151.0,0.00023685,7]
[329689717,1718580647630,-151.0,0.00023685,7]
[329689718,1718580647648,-151.0,0.00023685,7]
[329689719,1718580647659,-151.0,0.00023685,7]
[329689721,1718580647684,-151.0,0.00023685,7]
[329689722,1718580647704,-151.0,0.00023685,7]
[329689723,1718580647715,-151.0,0.00023685,7]
[329689724,1718580647727,-151.0,0.00023685,7]
[329689725,1718580647738,-152.535288,0.00023685,7]
[329689726,1718580647750,-785.252733,0.00023685,7]
[329689727,1718580647768,-785.252733,0.00023685,7]
[329689728,1718580647800,-151.0,0.00023685,7]
[329689729,1718580647833,-151.0,0.00023685,7]
[329689730,1718580647851,-151.0,0.00023685,7]
[329689731,1718580647863,-151.0,0.00023685,7]
[329689732,1718580647904,-151.0,0.00023685,7]
[329689733,1718580647918,-151.0,0.00023685,3]
[329689734,1718580647937,-151.0,0.00023685,7]
[329689735,1718580647964,-4980.206071,0.00023685,7]
[329689736,1718580647991,-4980.206071,0.00023685,7]
[329689737,1718580648006,-151.0,0.00023685,7]
[329689738,1718580648036,-190.439218,0.00023685,7]
[329689739,1718580648052,-190.439218,0.00023685,7]
[329689740,1718580648064,-151.0,0.00023685,7]
[329689741,1718580648084,-151.0,0.00023685,7]
[329689742,1718580648096,-206.86068,0.00023685,7]
[329689743,1718580648109,-151.0,0.00023685,7]
[329689744,1718580648132,-151.0,0.00023685,7]
[329689745,1718580648156,-151.0,0.00023685,7]
[329689746,1718580648184,-151.0,0.00023685,7]
[329689747,1718580648237,-151.0,0.00023685,7]
[329689748,1718580648279,-229.596745,0.00023685,7]
[329689749,1718580648308,-151.0,0.00023685,7]
[329689750,1718580648336,-229.596745,0.00023685,7]
[329689751,1718580648348,-151.0,0.00023685,7]
[329689752,1718580648369,-151.0,0.00023685,7]
[329689753,1718580648380,-566.947824,0.00023685,7]
[329689754,1718580648420,-151.0,0.00023685,7]
[329689755,1718580648435,-566.947824,0.00023685,7]
[329689756,1718580648476,-4071.42506977,0.00023718,2]
[329689757,1718580648488,-155.0,0.000238,2]
[329689758,1718580648516,-176.109644,0.00023892,7]
[329689759,1718580648528,-151.0,0.00023892,7]
[329689760,1718580648539,-151.0,0.00023892,7]
[329689761,1718580648553,-152.109357,0.00023892,7]
[329689762,1718580648564,-151.0,0.00023892,7]
[329689763,1718580648578,-3194.0,0.00023892,2]
[329689764,1718580648589,-1979.0,0.00023892,2]
[329689765,1718580648603,-1659.0,0.00023892,2]
[329689766,1718580648633,-1194.0,0.00023892,2]
[329689767,1718580648645,-1830.0,0.00023892,2]
[329689768,1718580648657,-5216.765,0.00023892,2]
[329689769,1718580648668,-290.0,0.00023892,2]
[329689770,1718580648680,-3261.509,0.00023892,2]
[329689771,1718580648692,-5765.0,0.00023892,2]
[329689772,1718580648716,-1066.0,0.00023892,2]
[329689773,1718580648752,-1652.0,0.00023892,2]
[329689774,1718580648780,-355.0,0.000239,2]
[329689775,1718580648801,-32196.51204518,0.00024,3]
[329689776,1718580648843,-10000.0,0.00024012,2]
[329689777,1718580648879,-3653.285,0.00024164,2]
[329689778,1718580648890,-180.0,0.0002423,2]
[329689779,1718580648903,-1000.0,0.000243,2]
[329689780,1718580648921,-224.0,0.000243,2]
[329689781,1718580648934,-948.0,0.000243,2]
[329689782,1718580648951,-500.0,0.00024344,2]
[329689783,1718580648961,-500.0,0.00024344,2]
[329689784,1718580648972,-150.13,0.00024384,2]
[329689785,1718580648986,-270.98,0.00024384,2]
[329689786,1718580649013,-495.52,0.00024384,2]
[329689787,1718580649025,-3669.496,0.00024483,2]
[329689788,1718580649068,-3705.099,0.00024504,2]
[329689789,1718580649083,-151.0,0.00024658,7]
[329689790,1718580649095,-151.0,0.00024658,7]
[329689791,1718580649106,-152.4785088,0.000247,2]
[329689792,1718580649116,-2000.0,0.000247,2]
[329689793,1718580649127,-2000.0,0.0002471,2]
[329689794,1718580649158,-2000.0,0.0002472,2]
[329689795,1718580649182,-2000.0,0.0002473,2]
[329689796,1718580649208,-2179.82743,0.0002474,2]
[329689797,1718580649219,-151.0,0.00024798,7]
[329689798,1718580649249,-151.0,0.00024798,7]
[329689799,1718580649261,-151.0,0.00024798,7]
[329689800,1718580649274,-151.0,0.00024798,7]
[329689801,1718580649300,-151.0,0.00024798,7]
[329689802,1718580649311,-227.778018,0.00024798,7]
[329689803,1718580649328,-151.0,0.00024798,7]
[329689804,1718580649342,-151.0,0.00024798,7]
[329689805,1718580649353,-151.0,0.00024798,7]
[329689806,1718580649364,-151.0,0.00024798,7]
[329689807,1718580649376,-611.496641,0.00024798,7]
[329689808,1718580649408,-611.496641,0.00024798,7]
[329689809,1718580649422,-151.0,0.00024798,7]
[329689810,1718580649437,-151.0,0.00024798,7]
[329689811,1718580649458,-151.0,0.00024798,7]
[329689812,1718580649468,-151.0,0.00024798,7]
[329689814,1718580649498,-151.0,0.00024798,7]
[329689816,1718580649509,-260.597686,0.00024798,7]
[329689818,1718580649578,-151.0,0.00024798,7]
[329689821,1718580649607,-151.0,0.00024798,7]
[329689822,1718580649633,-151.0,0.00024798,7]
[329689823,1718580649655,-234.384942,0.00024798,7]
[329689824,1718580649684,-234.384942,0.00024798,7]
[329689825,1718580649731,-151.0,0.00024798,7]
[329689826,1718580649785,-151.0,0.00024798,7]
[329689827,1718580649796,-151.0,0.00024798,7]
[329689828,1718580649807,-151.0,0.00024798,7]
[329689829,1718580649833,-151.0,0.00024798,7]
[329689830,1718580649844,-151.0,0.00024798,7]
[329689831,1718580649861,-553.852946,0.00024798,7]
[329689832,1718580649890,-553.852946,0.00024798,7]
[329689833,1718580649904,-222.025079,0.00024798,7]
[329689834,1718580649923,-222.025079,0.00024798,7]
[329689835,1718580649960,-217.863223,0.00024798,7]
[329689836,1718580649981,-151.0,0.00024798,7]
[329689837,1718580650028,-217.863223,0.00024798,7]
[329689838,1718580650084,-151.0,0.00024798,7]
[329689839,1718580650108,-151.0,0.00024798,7]
[329689840,1718580650152,-151.0,0.00024798,7]
[329689841,1718580650198,-316.296989,0.00024798,7]
[329689842,1718580650240,-151.0,0.00024798,7]
[329689843,1718580650255,-316.296989,0.00024798,7]
[329689844,1718580650273,-151.0,0.00024798,7]
[329689845,1718580650284,-151.0,0.00024798,7]
[329689846,1718580650512,-151.0,0.00024798,7]
[329689847,1718580650542,-151.0,0.00024798,7]
[329689848,1718580650554,-151.0,0.00024798,7]
[329689849,1718580650573,-151.0,0.00024798,7]
[329689850,1718580650585,-151.0,0.00024798,7]
[329689851,1718580650608,-151.0,0.00024798,7]
[329689852,1718580650623,-785.252733,0.00024798,7]
[329689853,1718580650635,-785.252733,0.00024798,7]
[329689854,1718580650653,-151.0,0.00024798,7]
[329689855,1718580650672,-151.0,0.00024798,7]
[329689856,1718580650716,-151.0,0.00024798,7]
[329689857,1718580650727,-296.908343,0.00024798,7]
[329689858,1718580650737,-151.0,0.00024798,7]
[329689859,1718580650748,-151.0,0.00024798,3]
[329689860,1718580650788,-151.0,0.00024798,7]
[329689861,1718580650808,-4980.206071,0.00024798,7]
[329689862,1718580650822,-4980.206071,0.00024798,7]
[329689863,1718580650840,-243.932598,0.00024798,7]
[329689864,1718580650862,-190.439218,0.00024798,7]
[329689865,1718580650873,-190.439218,0.00024798,7]
[329689866,1718580650883,-151.0,0.00024798,7]
[329689867,1718580650894,-151.0,0.00024798,7]
[329689868,1718580650913,-151.0,0.00024798,7]
[329689869,1718580650925,-151.0,0.00024798,7]
[329689870,1718580650952,-151.0,0.00024798,7]
[329689871,1718580650962,-151.0,0.00024798,7]
[329689872,1718580650979,-229.596745,0.00024798,7]
[329689873,1718580650992,-151.0,0.00024798,7]
[329689874,1718580651008,-229.596745,0.00024798,7]
[329689875,1718580651028,-151.0,0.00024798,7]
[329689876,1718580651039,-183.341786,0.00024799,7]
[329689877,1718580651054,-183.341786,0.00024799,7]
[329689878,1718580651066,-151.0,0.00024799,7]
[329689879,1718580651101,-151.0,0.00024799,7]
[329689880,1718580651112,-151.0,0.00024799,7]
[329689881,1718580651123,-151.0,0.00024799,7]
[329689882,1718580651134,-5495.23762147,0.00024799,2]
[329689883,1718580651147,-5495.23762141,0.00024799,2]
[329689884,1718580651158,-5495.23762141,0.00024799,2]
[329689885,1718580651169,-4150.06334678,0.00024799,2]
[329689886,1718580651563,-1345.17427463,0.00024799,2]
[329689887,1718580651578,-5495.23762141,0.00024799,2]
[329689888,1718580651591,-5495.23762141,0.00024799,2]
[329689889,1718580651620,-5495.23762141,0.00024799,2]
[329689890,1718580651634,-5495.23762141,0.00024799,2]
[329689891,1718580651660,-566.947824,0.00024799,7]
[329689892,1718580651673,-151.0,0.00024799,7]
[329689893,1718580651687,-566.947824,0.00024799,7]
[329689894,1718580651700,-3602.0,0.000248,3]
[329689895,1718580651724,-151.0,0.000248,7]
[329689896,1718580651752,-151.0,0.000248,7]
[329689897,1718580651763,-222.025079,0.000248,7]
[329689898,1718580651774,-222.025079,0.000248,7]
[329689899,1718580651794,-217.863223,0.000248,7]
[329689900,1718580651806,-151.0,0.000248,7]
[329689901,1718580651818,-217.863223,0.000248,7]
[329689902,1718580651831,-151.0,0.000248,7]
[329689903,1718580651843,-151.0,0.000248,7]
[329689904,1718580651860,-151.0,0.000248,7]
[329689905,1718580651885,-316.296989,0.000248,7]
[329689906,1718580651897,-151.0,0.000248,7]
[329689907,1718580651924,-316.296989,0.000248,7]
[329689908,1718580651941,-151.0,0.000248,7]
[329689909,1718580651954,-151.0,0.000248,7]
[329689910,1718580651963,-178.994568,0.000248,7]
[329689911,1718580651975,-151.0,0.000248,7]
[329689912,1718580651988,-1500.0,0.000248,9]
[329689913,1718580652002,-150.0,0.00024863,2]
[329689914,1718580652015,-2500.0,0.000249,2]
[329689915,1718580652028,-1900.0,0.000249,9]
[329689916,1718580652040,-207.9817774,0.000249,2]
[329689917,1718580652051,-955.38879748,0.000249,2]
[329689918,1718580652065,-3035.0719647,0.000249,2]
[329689919,1718580652086,-1001.20656213,0.000249,2]
[329689920,1718580652509,-563.8784653,0.000139,2]
[329689921,1718580652525,-416.7685347,0.000139,2]
[329689922,1718580652539,-160.69977789,0.000249,2]
[329689923,1718580652550,-818.7899933,0.00024931,3]
[329689924,1718580652572,-151.0,0.00024945,7]
[329689925,1718580652585,-151.0,0.00024945,7]
[329689926,1718580652597,-151.0,0.00024945,7]
[329689927,1718580652620,-151.0,0.00024945,7]
[329689928,1718580652638,-230.672404,0.00024945,7]
[329689929,1718580652651,-151.0,0.00024945,7]
[329689930,1718580652677,-553.852946,0.00024945,7]
[329689932,1718580652694,-553.852946,0.00024945,7]
[329689934,1718580652729,-151.0,0.00024945,7]
[329689936,1718580652756,-151.0,0.00024945,7]
[329689938,1718580652771,-233.5151,0.00024945,7]
[329689940,1718580652783,-785.252733,0.00024945,7]
[329689942,1718580652801,-785.252733,0.00024945,7]
[329689943,1718580652828,-151.0,0.00024945,7]
[329689945,1718580652842,-184.452593,0.00024945,7]
[329689947,1718580652857,-151.0,0.00024945,7]
[329689948,1718580652880,-151.0,0.00024945,7]
[329689950,1718580652895,-151.0,0.00024945,3]
[329689951,1718580652937,-151.0,0.00024945,7]
[329689954,1718580652965,-618.86049273,0.00024945,7]
[329689956,1718580652979,-4361.34557827,0.00024945,7]
[329689959,1718580653007,-4980.206071,0.00024945,7]
[329689961,1718580653026,-190.439218,0.00024945,7]
[329689962,1718580653046,-190.439218,0.00024945,7]
[329689964,1718580653058,-4071.42506977,0.00024945,2]
[329689966,1718580653069,-570.0,0.0002497,15]
[329689968,1718580653088,-1706.0,0.0002497,15]
[329689970,1718580653099,-151.0,0.0002497,7]
[329689972,1718580653110,-150.0,0.00024976,2]
[329689974,1718580653131,-570.0,0.0002498,15]
[329689976,1718580653147,-1706.0,0.0002498,15]
[329689979,1718580653191,-5339.0,0.00024986,2]
[329689980,1718580653214,-570.0,0.0002499,15]
[329689982,1718580653229,-1706.0,0.0002499,15]
[329689984,1718580653247,-150.5,0.0002499,15]
[329689987,1718580653270,-151.0,0.0002499,7]
[329689988,1718580653320,-151.0,0.0002499,7]
[329689989,1718580653332,-151.0,0.0002499,7]
[329689990,1718580653367,-151.0,0.0002499,7]
[329689991,1718580653385,-611.496641,0.0002499,7]
[329689992,1718580653395,-158.235157,0.0002499,7]
[329689993,1718580653408,-611.496641,0.0002499,7]
[329689994,1718580653424,-181.26085,0.0002499,7]
[329689995,1718580653441,-151.0,0.0002499,7]
[329689996,1718580653454,-151.0,0.0002499,7]
[329689997,1718580653466,-151.0,0.0002499,7]
[329689998,1718580653481,-151.0,0.0002499,7]
[329689999,1718580653503,-151.0,0.0002499,7]
[329690000,1718580653521,-174.1375,0.0002499,7]
[329690001,1718580653540,-151.0,0.0002499,7]
[329690002,1718580653553,-151.0,0.0002499,7]
[329690003,1718580653568,-151.0,0.0002499,7]
[329690004,1718580653585,-229.596745,0.0002499,7]
[329690005,1718580653598,-249.350209,0.0002499,7]
[329690006,1718580653633,-229.596745,0.0002499,7]
[329690007,1718580653647,-151.0,0.0002499,7]
[329690008,1718580653662,-150.0,0.00024997,2]
[329690009,1718580653673,-1278.56167909,0.00025,2]
[329690010,1718580653692,-7432.2410971,0.00025,2]
[329690011,1718580653705,-750.28144909,0.00025,4]
[329690012,1718580653729,-304.95856914,0.00025,2]
[329690013,1718580653752,-500.0,0.00025,2]
[329690014,1718580653784,-176374.98894774,0.00025,2]
[329690015,1718580655410,-12258.37352711,0.00025,2]
[329690016,1718580655445,-259.34325549,0.00025,2]
[329690017,1718580655462,-327.35007536,0.00025,2]
[329690018,1718580655765,-400.57,0.00021718,2]
[329690019,1718580655802,-9599.43,0.00021718,2]
[329690020,1718580655837,-4497.53690943,0.00025,2]
[329690021,1718580655855,-250109.97378342,0.00025,2]
[329690022,1718580655967,-25582.62590367,0.00025,2]
[329690023,1718580655981,-446.9224433,0.00025,2]
[329690024,1718580655995,-298.31787138,0.00025,2]
[329690025,1718580656441,-416616.23756786,0.00025,2]
[329690026,1718580656820,-545.65398465,0.00025,2]
[329690027,1718580656840,-3204.04329008,0.00025,2]
[329690039,1718580835177,5902.78840916,9e-05,2]
[329690044,1718580870793,14067.19106437,6.94e-05,2]
[329690045,1718580870861,255.22311228,6.94e-05,2]
[329690056,1718581366268,525.91,0.00012707,2]
[329690060,1718581719624,517.74,0.0001349,2]
[329690062,1718581785526,653.0,0.00027,30]
[329690076,1718581834201,-304.75005024,0.00013531,2]
[329690077,1718581834216,-8.00871861,0.00013532,2]
[329690078,1718581834237,-503.15430007,0.00013532,2]
[329690079,1718581834816,-619.46167428,0.00013532,2]
[329690080,1718581834912,-22769.37530704,0.00013532,2]
[329690081,1718581834938,-150.0,0.00013597,2]
[329690082,1718581834964,-4666.81120566,0.00013598,2]
[329690083,1718581834979,-280.44188,0.00013598,2]
[329690084,1718581835029,-381.64171645,0.00013598,2]
[329690085,1718581835502,-3132.50342781,0.00013598,2]
[329690086,1718581835536,-6643.9959,0.00013598,2]
[329690087,1718581835568,-775.19666386,0.00013598,2]
[329690088,1718581835616,-1078.78165656,0.00013598,2]
[329690089,1718581835642,-1000.37172,0.00013598,2]
[329690090,1718581835668,-1625.01193481,0.00013598,2]
[329690091,1718581835679,-155.0,0.000136,2]
[329690092,1718581835691,-424.98,0.0001362,2]
[329690093,1718581835715,-191.39,0.00013699,2]
[329690094,1718581835727,-219.44,0.0001389,3]
[329690095,1718581835753,-1448.17806519,0.000139,2]
[329690096,1718581835766,-284.1080006,0.000139,2]
[329690097,1718581835784,-4046.58383421,0.000139,2]
[329690098,1718581835801,-150.0,0.00013973,2]
[329690099,1718581835827,-293.74,0.00013973,2]
[329690100,1718581835840,-150.99,0.00013973,2]
[329690101,1718581835877,-3053.56880241,0.00013989,2]
[329690102,1718581835891,-2797.98553648,0.00013989,2]
[329690103,1718581835956,-1190.77382654,0.00013989,2]
[329690104,1718581836004,-207.98177739,0.00013989,2]
[329690105,1718581836015,-150.99,0.0001399,2]
[329690106,1718581836040,-188.70718237,0.0001399,2]
[329690107,1718581836051,-226.75444633,0.00013998,2]
[329690108,1718581836068,-197.64102241,0.00013999,2]
[329690109,1718581836110,-625021.51454246,0.00014,2]
[329690110,1718581836123,-3660.95130503,0.00014,2]
[329690111,1718581836135,-1241.72374471,0.00014,2]
[329690166,1718581841056,-32542.82611893,0.00014,2]
[329690167,1718581841072,-7272.65439133,0.00014,2]
[329690168,1718581841092,-1043.4,0.00014,2]
[329690169,1718581841106,-10430.79943194,0.00014,2]
[329690170,1718581841596,-28322.8141531,0.00014,2]
[329690171,1718581841610,-789.30350907,0.00014,2]
[329690172,1718581841630,-107690.36665077,0.00014,2]
[329690173,1718581841658,-1192.76000006,0.00014,2]
[329690174,1718581841673,-10089.42765396,0.00014,2]
[329690175,1718581841692,-274090.92671501,0.00014,2]
[329690176,1718581841713,-1091453.0742954,0.00014,2]
[329690177,1718581841728,-446.62731363,0.00014,2]
[329690178,1718581841757,-1869.7443923,0.00014,2]
[329690179,1718581841785,-167702.91640678,0.00014,2]
[329690180,1718581841813,-1010.92811315,0.00014,2]
[329690181,1718581841829,-426.35735425,0.00014,2]
[329690184,1718581843052,-1856.5631075,0.00014,2]
[329690185,1718581843067,-2412.18900786,0.00014,2]
[329690186,1718581843089,-1168.91354638,0.00014,2]
[329690187,1718581843111,-1659.99434364,0.00014,2]
[329690188,1718581843145,-2040.00565636,0.00014,2]
[329690189,1718581843165,-527.14081138,0.00014,2]
[329690190,1718581843185,-1124.36891629,0.00014,2]
[329690191,1718581843233,-572.78982099,0.00014,2]
[329690192,1718581843255,-857.48160053,0.00014,2]
[329690195,1718581845070,-250.0,0.0001394,2]
[329690196,1718581845105,-129.9422459,0.00014,2]
[329690217,1718581846665,-1267.82998508,0.00014,2]
[329690218,1718581846678,-600.0,0.00014,2]
[329690219,1718581846691,-3678.09456,0.00014,2]
[329690220,1718581847274,-422.85267956,0.00014,2]
[329690222,1718581847778,-1334562.65022399,0.00014,2]
[329690223,1718581847795,-355.99078641,0.00014089,2]
[329690224,1718581847807,-245.48707572,0.00014189,2]
[329690225,1718581847822,-175.48904367,0.00014189,2]
[329690226,1718581847836,-156.77732302,0.00014289,2]
[329690227,1718581847852,-499.99,0.00014389,2]
[329690229,1718581847864,-197.43,0.00014389,2]
[329690231,1718581847875,-470.17,0.00014516,2]
[329690233,1718581847910,-250.0,0.00014534,2]
[329690234,1718581847931,-470.17,0.00014556,2]
[329690236,1718581847960,-470.17,0.00014596,2]
[329690237,1718581847974,-470.17,0.00014635,2]
[329690239,1718581848013,-470.17,0.00014675,2]
[329690240,1718581848057,-470.17,0.00014715,2]
[329690241,1718581848068,-470.17,0.00014755,2]
[329690242,1718581848085,-182.6081173,0.00014789,2]
[329690243,1718581848108,-470.17,0.00014795,2]
[329690244,1718581848136,-470.17,0.00014834,2]
[329690245,1718581848164,-470.17,0.00014874,2]
[329690246,1718581848177,-470.17,0.00014914,2]
[329690247,1718581848190,-470.17,0.00014954,2]
[329690248,1718581848211,-210.0,0.00014957,2]
[329690249,1718581848228,-525.91,0.00014971,2]
[329690250,1718581848239,-470.17,0.00014994,2]
[329690251,1718581848273,-483560.54226762,0.00015,2]
[329690252,1718581848301,-470.17,0.00015033,2]
[329690253,1718581848317,-470.17,0.00015073,2]
[329690254,1718581848390,-470.17,0.00015113,2]
[329690255,1718581848401,-193.28,0.00015114,2]
[329690256,1718581848411,-470.17,0.00015153,2]
[329690257,1718581848422,-470.17,0.00015193,2]
[329690258,1718581848435,-3053.56880232,0.00015208,2]
[329690259,1718581848447,-470.17,0.00015232,2]
[329690260,1718581848459,-470.17,0.00015272,2]
[329690261,1718581848485,-424.98,0.00015322,2]
[329690262,1718581848500,-1000.0,0.00015501,2]
[329690263,1718581848513,-186.96,0.00015857,2]
[329690264,1718581848523,-1190.7738265,0.0001589,2]
[329690265,1718581848543,-4581.73,0.00016116,2]
[329690266,1718581848554,-517.74,0.0001623,2]
[329690267,1718581848565,-245.48707572,0.00016399,2]
[329690268,1718581848577,-3053.56880232,0.00016427,2]
[329690269,1718581848595,-1337.76,0.00016438,2]
[329690270,1718581848615,-293.0,0.00016452,2]
[329690271,1718581848625,-424.98,0.00017024,2]
[329690272,1718581848657,-525.91,0.00017235,2]
[329690273,1718581848680,-172.01,0.00017335,2]
[329690274,1718581848701,-172.01,0.0001734,2]
[329690275,1718581848713,-172.01,0.00017345,2]
[329690276,1718581848734,-172.01,0.00017349,2]
[329690277,1718581848761,-172.01,0.00017354,2]
[329690278,1718581848792,-172.01,0.00017358,2]
[329690279,1718581848804,-172.01,0.00017363,2]
[329690280,1718581848829,-172.01,0.00017367,2]
[329690281,1718581848845,-172.01,0.00017372,2]
[329690282,1718581848885,-172.01,0.00017377,2]
[329690283,1718581848908,-172.01,0.00017381,2]
[329690284,1718581848936,-172.01,0.00017386,2]
[329690285,1718581848949,-172.01,0.0001739,2]
[329690286,1718581848972,-172.01,0.00017395,2]
[329690287,1718581848992,-172.01,0.000174,2]
[329690288,1718581849003,-172.01,0.00017404,2]
[329690289,1718581849032,-172.01,0.00017409,2]
[329690290,1718581849047,-172.01,0.00017413,2]
[329690291,1718581849063,-172.01,0.00017418,2]
[329690292,1718581849092,-172.01,0.00017422,2]
[329690293,1718581849118,-1000.0,0.00017439,2]
[329690294,1718581849134,-3053.56880232,0.00017647,2]
[329690295,1718581849153,-1190.7738265,0.00017791,2]
[329690296,1718581849196,-245.48707572,0.00018609,2]
[329690297,1718581849210,-424.98,0.00018727,2]
[329690298,1718581849222,-3053.56880232,0.00018866,2]
[329690299,1718581849260,-182.6081173,0.00018958,2]
[329690300,1718581849278,-517.74,0.00018969,2]
[329690301,1718581849292,-528.92636121,0.00019178,2]
[329690302,1718581849303,-1500.0,0.00019178,5]
[329690303,1718581849336,-191.39,0.00019178,2]
[329690304,1718581849361,-1000.0,0.00019377,2]
[329690305,1718581849376,-525.91,0.00019499,2]
[329690306,1718581849400,-1190.7738265,0.00019692,2]
[329690307,1718581849415,-399.0,0.00019696,15]
[329690308,1718581849426,-1194.0,0.00019696,15]
[329690309,1718581849437,-399.0,0.00019706,15]
[329690310,1718581849448,-1194.0,0.00019706,15]
[329690311,1718581849466,-399.0,0.00019716,15]